Workbook

Sheet MCSim8
A1: Results of Monte Carlo Simulation | AK1: 0 | AL1: $H$3
A2: Sample Number | B2: $H$3 | F2: Simulation Stats | AH2: 0 | AK2: -1200 | AL2: 0
A3: 1 | B3: 234.4254285 | F3: 100000 | G3: repetitions | AH3: 0.1290322542 | AI3: 0 | AK3: -1200 | AL3: 1
A4: 2 | B4: 247.3380025 | F4: 60.9999998 | G4: seconds | I4: Summary Statistics | L4: Notes | AH4: 0.2580645084 | AI4: 3 | AK4: -1175 | AL4: 1
A5: 3 | B5: 108.4113808 | I5: Average | J5: 199.7987461 | AH5: 0.3870967627 | AI5: 4 | AK5: -1175 | AL5: 0
A6: 4 | B6: 249.1810083 | I6: SD | J6: 43.95114761 | AH6: 0.5161290169 | AI6: 8 | AK6: -1150 | AL6: 0
A7: 5 | B7: 209.0158592 | I7: Max | J7: 1046.936084 | AH7: 0.6451612711 | AI7: 4 | AK7: -1150 | AL7: 0
A8: 6 | B8: 205.3882837 | I8: Min | J8: -1181.183213 | AH8: 0.7741935253 | AI8: 9 | AK8: -1125 | AL8: 0
A9: 7 | B9: 193.1012524 | AH9: 0.9032257795 | AI9: 9 | AK9: -1125 | AL9: 0
A10: 8 | B10: 170.9117168 | AH10: 1.032258034 | AI10: 12 | AK10: -1100 | AL10: 0
A11: 9 | B11: 223.1454112 | AH11: 1.161290288 | AI11: 8 | AK11: -1100 | AL11: 0
A12: 10 | B12: 123.3184062 | AH12: 1.290322542 | AI12: 3 | AK12: -1075 | AL12: 0
A13: 11 | B13: 188.1092053 | AH13: 1.419354796 | AI13: 6 | AK13: -1075 | AL13: 0
A14: 12 | B14: 243.3667848 | AH14: 1.548387051 | AI14: 7 | AK14: -1050 | AL14: 0
A15: 13 | B15: 165.3519881 | AH15: 1.677419305 | AI15: 6 | AK15: -1050 | AL15: 0
A16: 14 | B16: 266.7338555 | AH16: 1.806451559 | AI16: 6 | AK16: -1025 | AL16: 0
A17: 15 | B17: 297.1115362 | AH17: 1.935483813 | AI17: 2 | AK17: -1025 | AL17: 0
A18: 16 | B18: 226.1376205 | AH18: 2.064516068 | AI18: 5 | AK18: -1000 | AL18: 0
A19: 17 | B19: 249.8549261 | AH19: 2.193548322 | AI19: 2 | AK19: -1000 | AL19: 0
A20: 18 | B20: 160.8468182 | AH20: 2.322580576 | AI20: 3 | AK20: -975 | AL20: 0
A21: 19 | B21: 221.9491209 | AH21: 2.45161283 | AI21: 2 | AK21: -975 | AL21: 0
A22: 20 | B22: 82.73094554 | AH22: 2.580645084 | AI22: 1 | AK22: -950 | AL22: 0
A23: 21 | B23: 230.048314 | AH23: 2.709677339 | AI23: 0 | AK23: -950 | AL23: 0
A24: 22 | B24: 251.6657165 | AH24: 2.838709593 | AI24: 0 | AK24: -925 | AL24: 0
A25: 23 | B25: 169.1961433 | AH25: 2.967741847 | AI25: 0 | AK25: -925 | AL25: 0
A26: 24 | B26: 200.8851626 | AH26: 3.096774101 | AI26: 0 | AK26: -900 | AL26: 0
A27: 25 | B27: 196.0970329 | AH27: 3.225806355 | AI27: 0 | AK27: -900 | AL27: 0
A28: 26 | B28: 246.4742345 | AH28: 3.35483861 | AI28: 0 | AK28: -875 | AL28: 0
A29: 27 | B29: 192.6360361 | AH29: 3.483870864 | AI29: 0 | AK29: -875 | AL29: 0
A30: 28 | B30: 164.7750764 | AH30: 3.612903118 | AI30: 0 | AK30: -850 | AL30: 0
A31: 29 | B31: 181.4227166 | AH31: 3.741935372 | AI31: 0 | AK31: -850 | AL31: 0
A32: 30 | B32: 174.5680158 | AH32: 3.870967627 | AI32: 0 | AK32: -825 | AL32: 0
A33: 31 | B33: 144.1450397 | AH33: 3.999999881 | AI33: 0 | AK33: -825 | AL33: 0
A34: 32 | B34: 156.0436748 | AK34: -800 | AL34: 0
A35: 33 | B35: 172.9349162 | AK35: -800 | AL35: 0
A36: 34 | B36: 136.6629344 | AK36: -775 | AL36: 0
A37: 35 | B37: 216.1108941 | AK37: -775 | AL37: 0
A38: 36 | B38: 214.9870026 | AK38: -750 | AL38: 0
A39: 37 | B39: 169.6644556 | AK39: -750 | AL39: 0
A40: 38 | B40: 18.12457511 | AK40: -725 | AL40: 0
A41: 39 | B41: 246.0291419 | AK41: -725 | AL41: 0
A42: 40 | B42: 161.5124868 | AK42: -700 | AL42: 0
A43: 41 | B43: 282.9523102 | AK43: -700 | AL43: 0
A44: 42 | B44: 197.5373032 | AK44: -675 | AL44: 0
A45: 43 | B45: 191.4163408 | AK45: -675 | AL45: 0
A46: 44 | B46: 242.7920046 | AK46: -650 | AL46: 0
A47: 45 | B47: 160.7048708 | AK47: -650 | AL47: 0
A48: 46 | B48: 128.1990915 | AK48: -625 | AL48: 0
A49: 47 | B49: 135.8452076 | AK49: -625 | AL49: 0
A50: 48 | B50: 207.7020766 | AK50: -600 | AL50: 0
A51: 49 | B51: 200.9032435 | AK51: -600 | AL51: 0
A52: 50 | B52: 216.2995202 | AK52: -575 | AL52: 0
A53: 51 | B53: 175.6980309 | AK53: -575 | AL53: 0
A54: 52 | B54: 179.7750958 | AK54: -550 | AL54: 0
A55: 53 | B55: 246.3749456 | AK55: -550 | AL55: 0
A56: 54 | B56: 208.0822982 | AK56: -525 | AL56: 0
A57: 55 | B57: 253.4270418 | AK57: -525 | AL57: 0
A58: 56 | B58: 167.8562368 | AK58: -500 | AL58: 0
A59: 57 | B59: 228.5952197 | AK59: -500 | AL59: 0
A60: 58 | B60: 154.6292088 | AK60: -475 | AL60: 0
A61: 59 | B61: 205.1274424 | AK61: -475 | AL61: 1
A62: 60 | B62: 150.7839128 | AK62: -450 | AL62: 1
A63: 61 | B63: 248.1595082 | AK63: -450 | AL63: 0
A64: 62 | B64: 187.7364151 | AK64: -425 | AL64: 0
A65: 63 | B65: 219.7246144 | AK65: -425 | AL65: 0
A66: 64 | B66: 190.248276 | AK66: -400 | AL66: 0
A67: 65 | B67: 204.3223794 | AK67: -400 | AL67: 0
A68: 66 | B68: 201.6805869 | AK68: -375 | AL68: 0
A69: 67 | B69: 154.3543911 | AK69: -375 | AL69: 0
A70: 68 | B70: 236.6092398 | AK70: -350 | AL70: 0
A71: 69 | B71: 179.8965062 | AK71: -350 | AL71: 0
A72: 70 | B72: 242.3621848 | AK72: -325 | AL72: 0
A73: 71 | B73: 172.084658 | AK73: -325 | AL73: 2
A74: 72 | B74: 185.3076218 | AK74: -300 | AL74: 2
A75: 73 | B75: 213.7075963 | AK75: -300 | AL75: 1
A76: 74 | B76: 170.3312529 | AK76: -275 | AL76: 1
A77: 75 | B77: 216.7963339 | AK77: -275 | AL77: 1
A78: 76 | B78: 174.1319278 | AK78: -250 | AL78: 1
A79: 77 | B79: 209.3853407 | AK79: -250 | AL79: 0
A80: 78 | B80: 180.26563 | AK80: -225 | AL80: 0
A81: 79 | B81: 225.7128332 | AK81: -225 | AL81: 0
A82: 80 | B82: 196.0377203 | AK82: -200 | AL82: 0
A83: 81 | B83: 164.0628784 | AK83: -200 | AL83: 2
A84: 82 | B84: 251.6077678 | AK84: -175 | AL84: 2
A85: 83 | B85: 172.4251614 | AK85: -175 | AL85: 2
A86: 84 | B86: 290.0660048 | AK86: -150 | AL86: 2
A87: 85 | B87: 183.8145164 | AK87: -150 | AL87: 4
A88: 86 | B88: 204.5060615 | AK88: -125 | AL88: 4
A89: 87 | B89: 212.9497645 | AK89: -125 | AL89: 7
A90: 88 | B90: 166.4319676 | AK90: -100 | AL90: 7
A91: 89 | B91: 234.381133 | AK91: -100 | AL91: 8
A92: 90 | B92: 239.1896681 | AK92: -75 | AL92: 8
A93: 91 | B93: 120.6482416 | AK93: -75 | AL93: 15
A94: 92 | B94: 180.6482413 | AK94: -50 | AL94: 15
A95: 93 | B95: 220.4333273 | AK95: -50 | AL95: 26
A96: 94 | B96: 203.8786923 | AK96: -25 | AL96: 26
A97: 95 | B97: 201.1907326 | AK97: -25 | AL97: 47
A98: 96 | B98: 228.3104763 | AK98: 0 | AL98: 47
A99: 97 | B99: 164.68021 | AK99: 0 | AL99: 96
A100: 98 | B100: 222.0816519 | AK100: 25 | AL100: 96
A101: 99 | B101: 158.9739637 | AK101: 25 | AL101: 160
A102: 100 | B102: 207.9252868 | AK102: 50 | AL102: 160
A103: Only the first 100 repetitions are displayed on this worksheet. | AK103: 50 | AL103: 345
AK104: 75 | AL104: 345
AK105: 75 | AL105: 834
AK106: 100 | AL106: 834
AK107: 100 | AL107: 2213
AK108: 125 | AL108: 2213
AK109: 125 | AL109: 6077
AK110: 150 | AL110: 6077
AK111: 150 | AL111: 14971
AK112: 175 | AL112: 14971
AK113: 175 | AL113: 25387
AK114: 200 | AL114: 25387
AK115: 200 | AL115: 25100
AK116: 225 | AL116: 25100
AK117: 225 | AL117: 14971
AK118: 250 | AL118: 14971
AK119: 250 | AL119: 6101
AK120: 275 | AL120: 6101
AK121: 275 | AL121: 2149
AK122: 300 | AL122: 2149
AK123: 300 | AL123: 810
AK124: 325 | AL124: 810
AK125: 325 | AL125: 331
AK126: 350 | AL126: 331
AK127: 350 | AL127: 146
AK128: 375 | AL128: 146
AK129: 375 | AL129: 75
AK130: 400 | AL130: 75
AK131: 400 | AL131: 33
AK132: 425 | AL132: 33
AK133: 425 | AL133: 31
AK134: 450 | AL134: 31
AK135: 450 | AL135: 20
AK136: 475 | AL136: 20
AK137: 475 | AL137: 8
AK138: 500 | AL138: 8
AK139: 500 | AL139: 10
AK140: 525 | AL140: 10
AK141: 525 | AL141: 3
AK142: 550 | AL142: 3
AK143: 550 | AL143: 3
AK144: 575 | AL144: 3
AK145: 575 | AL145: 1
AK146: 600 | AL146: 1
AK147: 600 | AL147: 1
AK148: 625 | AL148: 1
AK149: 625 | AL149: 1
AK150: 650 | AL150: 1
AK151: 650 | AL151: 1
AK152: 675 | AL152: 1
AK153: 675 | AL153: 1
AK154: 700 | AL154: 1
AK155: 700 | AL155: 2
AK156: 725 | AL156: 2
AK157: 725 | AL157: 1
AK158: 750 | AL158: 1
AK159: 750 | AL159: 0
AK160: 775 | AL160: 0
AK161: 775 | AL161: 0
AK162: 800 | AL162: 0
AK163: 800 | AL163: 0
AK164: 825 | AL164: 0
AK165: 825 | AL165: 0
AK166: 850 | AL166: 0
AK167: 850 | AL167: 0
AK168: 875 | AL168: 0
AK169: 875 | AL169: 0
AK170: 900 | AL170: 0
AK171: 900 | AL171: 0
AK172: 925 | AL172: 0
AK173: 925 | AL173: 0
AK174: 950 | AL174: 0
AK175: 950 | AL175: 0
AK176: 975 | AL176: 0
AK177: 975 | AL177: 0
AK178: 1000 | AL178: 0
AK179: 1000 | AL179: 0
AK180: 1025 | AL180: 0
AK181: 1025 | AL181: 1
AK182: 1050 | AL182: 1
AK183: 1050 | AL183: 0

Sheet Live
H2: Pred Y = b0 + b1X1
C3: Parameters | H3: =LINEST(F11:F15,C11:C15,1,1) -> 197.1289294 | I3: 180.3424007
C4: beta0 | D4: 100 | H4: 47.63624444 | I4: 182.7436569
C5: beta1 | D5: 200 | H5: 0.8509302505 | I5: 233.9570751
C6: beta2 | D6: 0 | H6: 17.12480741 | I6: 3
C7: SD errors | D7: 200 | H7: 937341.9689 | I7: 164207.739
C8: alpha | D8: 0
B10: Intercept | C10: X1 | D10: X2 | E10: epsilon | F10: Y
B11: 1 | C11: =RAND()*10 -> 2.44231127 | D11: =RAND()*100 -> 56.2312915 | E11: =NORMINV(RAND(),0,$D$7)*C11^alpha -> 2.084158973 | F11: =$D$4+$D$5*C11+$D$6*D11+E11 -> 590.546413
B12: 1 | C12: =RAND()*10 -> 3.772576141 | D12: =RAND()*100 -> 23.52636967 | E12: =NORMINV(RAND(),0,$D$7)*C12^alpha -> 0.7866541316 | F12: =$D$4+$D$5*C12+$D$6*D12+E12 -> 855.3018823
B13: 1 | C13: 2.063470454 | D13: 40.10318477 | E13: =NORMINV(RAND(),0,$D$7)*C13^alpha -> -179.7270323 | F13: 332.9670585
B14: 1 | C14: 6.994480435 | D14: 61.78590499 | E14: =NORMINV(RAND(),0,$D$7)*C14^alpha -> 179.3590497 | F14: 1678.255137
B15: 1 | C15: 0.4532935091 | D15: 52.41535662 | E15: =NORMINV(RAND(),0,$D$7)*C15^alpha -> 354.0583375 | F15: 544.7170394
D17: =CORREL(C11:C15,D11:D15) -> 0.1906760206 | E17: r

Sheet MCSim7
A1: Results of Monte Carlo Simulation | AL1: $H$3 | AM1: Dead!$H$4
A2: Sample Number | B2: $H$3 | C2: Dead!$H$4 | F2: Simulation Stats | AH2: -8250 | AK2: -8250 | AL2: 0 | AM2: 0
A3: 1 | B3: -1568.566545 | C3: 1421.063172 | F3: 100000 | G3: repetitions | AH3: -8000 | AK3: -8250 | AL3: 1 | AM3: 0
A4: 2 | B4: -418.4623951 | C4: 1639.584518 | F4: 101.0000004 | G4: secs | I4: $H$3 | K4: Dead!$H$4 | M4: Notes | AH4: -7750 | AK4: -8000 | AL4: 1 | AM4: 0
A5: 3 | B5: 215.1302597 | C5: 421.7825298 | I5: Average | J5: 195.7646677 | K5: Average | L5: 1268.007916 | M5: =(L5-J6)/J6 -> -0.3267707743 | N5: miss by est SE | AH5: -7500 | AK5: -8000 | AL5: 0 | AM5: 0
A6: 4 | B6: -1041.08337 | C6: 474.7570259 | I6: SD | J6: 1883.471287 | K6: SD | L6: 735.0665978 | AH6: -7250 | AK6: -7750 | AL6: 0 | AM6: 0
A7: 5 | B7: 1742.289885 | C7: 3362.422892 | I7: Max | J7: 8494.481366 | K7: Max | L7: 5960.980877 | AH7: -7000 | AK7: -7750 | AL7: 1 | AM7: 0
A8: 6 | B8: 2378.689343 | C8: 814.8180861 | I8: Min | J8: -8021.417206 | K8: Min | L8: 17.49926944 | AH8: -6750 | AK8: -7500 | AL8: 1 | AM8: 0
A9: 7 | B9: -1341.813191 | C9: 1673.291054 | AH9: -6500 | AK9: -7500 | AL9: 1 | AM9: 0
A10: 8 | B10: 668.9579741 | C10: 2842.44738 | AH10: -6250 | AK10: -7250 | AL10: 1 | AM10: 0
A11: 9 | B11: 99.26361086 | C11: 527.9267619 | AH11: -6000 | AK11: -7250 | AL11: 3 | AM11: 0
A12: 10 | B12: 112.9066377 | C12: 716.8089111 | AH12: -5750 | AK12: -7000 | AL12: 3 | AM12: 0
A13: 11 | B13: 505.2091218 | C13: 716.2740973 | AH13: -5500 | AK13: -7000 | AL13: 2 | AM13: 0
A14: 12 | B14: 212.7239207 | C14: 411.9501439 | AH14: -5250 | AK14: -6750 | AL14: 2 | AM14: 0
A15: 13 | B15: -981.8656802 | C15: 279.4492859 | AH15: -5000 | AK15: -6750 | AL15: 6 | AM15: 0
A16: 14 | B16: 648.9269284 | C16: 1371.206762 | AH16: -4750 | AK16: -6500 | AL16: 6 | AM16: 0
A17: 15 | B17: -1211.02318 | C17: 1115.56265 | AH17: -4500 | AK17: -6500 | AL17: 12 | AM17: 0
A18: 16 | B18: -333.615326 | C18: 581.7354747 | AH18: -4250 | AK18: -6250 | AL18: 12 | AM18: 0
A19: 17 | B19: -427.2058207 | C19: 294.3902133 | F19: 1 | AH19: -4000 | AK19: -6250 | AL19: 21 | AM19: 0
A20: 18 | B20: 3121.84437 | C20: 1622.818133 | AH20: -3750 | AK20: -6000 | AL20: 21 | AM20: 0
A21: 19 | B21: 2348.061688 | C21: 368.1505003 | AH21: -3500 | AK21: -6000 | AL21: 35 | AM21: 0
A22: 20 | B22: 2386.490945 | C22: 2844.229394 | AH22: -3250 | AK22: -5750 | AL22: 35 | AM22: 0
A23: 21 | B23: -3320.787477 | C23: 1730.542867 | AH23: -3000 | AK23: -5750 | AL23: 34 | AM23: 0
A24: 22 | B24: 1376.045072 | C24: 897.3343976 | AH24: -2750 | AK24: -5500 | AL24: 34 | AM24: 0
A25: 23 | B25: -141.404795 | C25: 377.3479412 | AH25: -2500 | AK25: -5500 | AL25: 89 | AM25: 0
A26: 24 | B26: -1941.208489 | C26: 1855.97067 | AH26: -2250 | AK26: -5250 | AL26: 89 | AM26: 0
A27: 25 | B27: -146.8377073 | C27: 499.7501125 | AH27: -2000 | AK27: -5250 | AL27: 98 | AM27: 0
A28: 26 | B28: 374.9841437 | C28: 1063.343815 | AH28: -1750 | AK28: -5000 | AL28: 98 | AM28: 0
A29: 27 | B29: 350.3292314 | C29: 562.2322988 | AH29: -1500 | AK29: -5000 | AL29: 130 | AM29: 0
A30: 28 | B30: 1171.215558 | C30: 440.3755089 | AH30: -1250 | AK30: -4750 | AL30: 130 | AM30: 0
A31: 29 | B31: -798.4094918 | C31: 207.3398141 | AH31: -1000 | AK31: -4750 | AL31: 207 | AM31: 0
A32: 30 | B32: 695.53753 | C32: 484.7959813 | AH32: -750 | AK32: -4500 | AL32: 207 | AM32: 0
A33: 31 | B33: 502.2311505 | C33: 3421.413661 | AH33: -500 | AK33: -4500 | AL33: 263 | AM33: 0
A34: 32 | B34: -1114.501548 | C34: 132.526626 | AH34: -250 | AK34: -4250 | AL34: 263 | AM34: 0
A35: 33 | B35: -710.6902835 | C35: 194.335035 | AH35: 0 | AK35: -4250 | AL35: 364 | AM35: 0
A36: 34 | B36: 3421.571679 | C36: 3271.748139 | AH36: 250 | AK36: -4000 | AL36: 364 | AM36: 0
A37: 35 | B37: 3461.197695 | C37: 2711.932096 | AH37: 500 | AK37: -4000 | AL37: 544 | AM37: 0
A38: 36 | B38: -2521.716845 | C38: 1028.096006 | AH38: 750 | AK38: -3750 | AL38: 544 | AM38: 0
A39: 37 | B39: -249.7547915 | C39: 1102.416015 | AH39: 1000 | AK39: -3750 | AL39: 681 | AM39: 0
A40: 38 | B40: -4807.201255 | C40: 1106.840418 | AH40: 1250 | AK40: -3500 | AL40: 681 | AM40: 0
A41: 39 | B41: 1212.722909 | C41: 2160.595381 | AH41: 1500 | AK41: -3500 | AL41: 887 | AM41: 0
A42: 40 | B42: -200.5346097 | C42: 139.0601697 | AH42: 1750 | AK42: -3250 | AL42: 887 | AM42: 0
A43: 41 | B43: -834.1496533 | C43: 1796.176895 | AH43: 2000 | AK43: -3250 | AL43: 1177 | AM43: 0
A44: 42 | B44: 364.5241021 | C44: 2387.418441 | AH44: 2250 | AK44: -3000 | AL44: 1177 | AM44: 0
A45: 43 | B45: -1925.49659 | C45: 971.9717149 | AH45: 2500 | AK45: -3000 | AL45: 1439 | AM45: 0
A46: 44 | B46: 3575.455928 | C46: 1508.723322 | AH46: 2750 | AK46: -2750 | AL46: 1439 | AM46: 0
A47: 45 | B47: -2788.221926 | C47: 1838.938063 | AH47: 3000 | AK47: -2750 | AL47: 1694 | AM47: 0
A48: 46 | B48: -1438.517566 | C48: 1136.836736 | AH48: 3250 | AK48: -2500 | AL48: 1694 | AM48: 0
A49: 47 | B49: -912.7872673 | C49: 1772.98908 | AH49: 3500 | AK49: -2500 | AL49: 2089 | AM49: 0
A50: 48 | B50: 1469.10045 | C50: 1397.608703 | AH50: 3750 | AK50: -2250 | AL50: 2089 | AM50: 0
A51: 49 | B51: 2688.484896 | C51: 1902.131706 | AH51: 4000 | AK51: -2250 | AL51: 2571 | AM51: 0
A52: 50 | B52: 2871.035209 | C52: 1247.782928 | AH52: 4250 | AK52: -2000 | AL52: 2571 | AM52: 0
A53: 51 | B53: -1070.748267 | C53: 320.847461 | AH53: 4500 | AK53: -2000 | AL53: 2943 | AM53: 0
A54: 52 | B54: -466.3680275 | C54: 327.2154886 | AH54: 4750 | AK54: -1750 | AL54: 2943 | AM54: 0
A55: 53 | B55: 1544.861326 | C55: 1862.69005 | AH55: 5000 | AK55: -1750 | AL55: 3257 | AM55: 0
A56: 54 | B56: -372.133728 | C56: 283.9990747 | AH56: 5250 | AK56: -1500 | AL56: 3257 | AM56: 0
A57: 55 | B57: -2019.558231 | C57: 883.6375972 | AH57: 5500 | AK57: -1500 | AL57: 3667 | AM57: 0
A58: 56 | B58: 1965.78821 | C58: 1054.364885 | AH58: 5750 | AK58: -1250 | AL58: 3667 | AM58: 0
A59: 57 | B59: -751.7310588 | C59: 599.9672331 | AH59: 6000 | AK59: -1250 | AL59: 4079 | AM59: 0
A60: 58 | B60: 4536.63761 | C60: 1841.103442 | AH60: 6250 | AK60: -1000 | AL60: 4079 | AM60: 0
A61: 59 | B61: 47.80478164 | C61: 1197.901139 | AH61: 6500 | AK61: -1000 | AL61: 4390 | AM61: 0
A62: 60 | B62: 3982.664614 | C62: 2047.235559 | AH62: 6750 | AK62: -750 | AL62: 4390 | AM62: 0
A63: 61 | B63: -656.5331915 | C63: 296.9254503 | AH63: 7000 | AK63: -750 | AL63: 4792 | AM63: 0
A64: 62 | B64: -2629.933883 | C64: 903.2686805 | AH64: 7250 | AK64: -500 | AL64: 4792 | AM64: 0
A65: 63 | B65: 2363.062557 | C65: 1395.718224 | AH65: 7500 | AK65: -500 | AL65: 4993 | AM65: 0
A66: 64 | B66: 1750.603441 | C66: 1154.703504 | AH66: 7750 | AK66: -250 | AL66: 4993 | AM66: 0
A67: 65 | B67: -1298.338488 | C67: 661.2978429 | AH67: 8000 | AK67: -250 | AL67: 5187 | AM67: 0
A68: 66 | B68: 1944.889396 | C68: 610.7435978 | AH68: 8250 | AK68: 0 | AL68: 5187 | AM68: 0
A69: 67 | B69: 2100.546837 | C69: 837.9396334 | AH69: 8500 | AK69: 0 | AL69: 5261 | AM69: 2302
A70: 68 | B70: 1835.823943 | C70: 1174.136024 | AK70: 250 | AL70: 5261 | AM70: 2302
A71: 69 | B71: -976.8624588 | C71: 2645.903002 | AK71: 250 | AL71: 5274 | AM71: 9988
A72: 70 | B72: -2036.466609 | C72: 438.668074 | AK72: 500 | AL72: 5274 | AM72: 9988
A73: 71 | B73: 1199.920213 | C73: 259.6704862 | AK73: 500 | AL73: 5259 | AM73: 14800
A74: 72 | B74: 2848.863986 | C74: 1575.732742 | AK74: 750 | AL74: 5259 | AM74: 14800
A75: 73 | B75: 1584.141582 | C75: 794.6596806 | AK75: 750 | AL75: 4914 | AM75: 15602
A76: 74 | B76: -1154.678016 | C76: 1373.2403 | AK76: 1000 | AL76: 4914 | AM76: 15602
A77: 75 | B77: -2001.469881 | C77: 444.6682839 | AK77: 1000 | AL77: 4706 | AM77: 14031
A78: 76 | B78: -2298.119477 | C78: 1507.732815 | AK78: 1250 | AL78: 4706 | AM78: 14031
A79: 77 | B79: 1102.50063 | C79: 1418.600544 | AK79: 1250 | AL79: 4375 | AM79: 11744
A80: 78 | B80: -569.1687085 | C80: 328.4864233 | AK80: 1500 | AL80: 4375 | AM80: 11744
A81: 79 | B81: 1957.531482 | C81: 1455.974842 | AK81: 1500 | AL81: 4062 | AM81: 9053
A82: 80 | B82: 130.2190742 | C82: 415.3436684 | AK82: 1750 | AL82: 4062 | AM82: 9053
A83: 81 | B83: 453.98819 | C83: 2761.934248 | AK83: 1750 | AL83: 3541 | AM83: 6818
A84: 82 | B84: -1035.311805 | C84: 1136.437104 | AK84: 2000 | AL84: 3541 | AM84: 6818
A85: 83 | B85: -1226.928246 | C85: 458.9606008 | AK85: 2000 | AL85: 3161 | AM85: 5023
A86: 84 | B86: -3196.740478 | C86: 991.1984969 | AK86: 2250 | AL86: 3161 | AM86: 5023
A87: 85 | B87: 1518.983134 | C87: 491.1995647 | AK87: 2250 | AL87: 2785 | AM87: 3655
A88: 86 | B88: -1854.233583 | C88: 1102.450495 | AK88: 2500 | AL88: 2785 | AM88: 3655
A89: 87 | B89: -90.8714609 | C89: 1094.444471 | AK89: 2500 | AL89: 2291 | AM89: 2515
A90: 88 | B90: -622.2533615 | C90: 752.9655894 | AK90: 2750 | AL90: 2291 | AM90: 2515
A91: 89 | B91: 5220.8421 | C91: 2424.619104 | AK91: 2750 | AL91: 1991 | AM91: 1726
A92: 90 | B92: -356.6065764 | C92: 840.6959794 | AK92: 3000 | AL92: 1991 | AM92: 1726
A93: 91 | B93: -1136.456766 | C93: 860.3378158 | AK93: 3000 | AL93: 1544 | AM93: 1082
A94: 92 | B94: 2949.275592 | C94: 2236.087662 | AK94: 3250 | AL94: 1544 | AM94: 1082
A95: 93 | B95: -328.0303917 | C95: 449.407545 | AK95: 3250 | AL95: 1293 | AM95: 697
A96: 94 | B96: -808.0044006 | C96: 1240.143583 | AK96: 3500 | AL96: 1293 | AM96: 697
A97: 95 | B97: 1712.632345 | C97: 1939.364011 | AK97: 3500 | AL97: 1006 | AM97: 432
A98: 96 | B98: 1274.739883 | C98: 1287.948073 | AK98: 3750 | AL98: 1006 | AM98: 432
A99: 97 | B99: -514.4766507 | C99: 1740.783086 | AK99: 3750 | AL99: 801 | AM99: 233
A100: 98 | B100: -617.6558366 | C100: 581.5175373 | AK100: 4000 | AL100: 801 | AM100: 233
A101: 99 | B101: -450.9727804 | C101: 963.3819284 | AK101: 4000 | AL101: 602 | AM101: 142
A102: 100 | B102: -2732.556071 | C102: 2801.197428 | AK102: 4250 | AL102: 602 | AM102: 142
A103: Only the first 100 repetitions are displayed on this worksheet. | AK103: 4250 | AL103: 430 | AM103: 75
AK104: 4500 | AL104: 430 | AM104: 75
AK105: 4500 | AL105: 314 | AM105: 36
AK106: 4750 | AL106: 314 | AM106: 36
AK107: 4750 | AL107: 221 | AM107: 28
AK108: 5000 | AL108: 221 | AM108: 28
AK109: 5000 | AL109: 147 | AM109: 12
AK110: 5250 | AL110: 147 | AM110: 12
AK111: 5250 | AL111: 114 | AM111: 1
AK112: 5500 | AL112: 114 | AM112: 1
AK113: 5500 | AL113: 95 | AM113: 2
AK114: 5750 | AL114: 95 | AM114: 2
AK115: 5750 | AL115: 67 | AM115: 3
AK116: 6000 | AL116: 67 | AM116: 3
AK117: 6000 | AL117: 23 | AM117: 0
AK118: 6250 | AL118: 23
AK119: 6250 | AL119: 21
AK120: 6500 | AL120: 21
AK121: 6500 | AL121: 17
AK122: 6750 | AL122: 17
AK123: 6750 | AL123: 9
AK124: 7000 | AL124: 9
AK125: 7000 | AL125: 8
AK126: 7250 | AL126: 8
AK127: 7250 | AL127: 3
AK128: 7500 | AL128: 3
AK129: 7500 | AL129: 6
AK130: 7750 | AL130: 6
AK131: 7750 | AL131: 0
AK132: 8000 | AL132: 0
AK133: 8000 | AL133: 0
AK134: 8250 | AL134: 0
AK135: 8250 | AL135: 2
AK136: 8500 | AL136: 2
AK137: 8500 | AL137: 0

Sheet Dead
A1: Same fill color means cells values are equal. | H1: OLS | K1: LMS Function | N1: OLSREG Function
H2: Pred Y = b0 + b1X1 | K2: =lms(F11:F15,C11:C15) -> -2971.884649 | L2: b0 | N2: =olsreg(C10:C15,F10:F15,1,1) -> No. obs. | O2: 5 | P2: SSR | Q2: 281934573.3
C3: Parameters | H3: =LINEST(F11:F15,C11:C15,1,1) -> -1127.515425 | I3: 4617.609274 | K3: 1449.12285 | L3: b1 | N3: No. missing obs. | O3: 0 | P3: TSS | Q3: 329961218.5
C4: beta0 | D4: 100 | F4: estimated SE of b1 | G4: =I5/(SQRT(5)*_xlfn.STDEV.P(C11:C15)) -> 1577.229558 | H4: 1577.229558 | I4: 9619.330883 | K4: 490063.7207 | L4: MinMedSR | N4: Mean Dep Var | O4: -1520.958334 | P4: R2 | Q4: 0.1455523938
C5: beta1 | D5: 200 | F5: exact SE of b1 | G5: =D7/(SQRT(5)*_xlfn.STDEV.P(C11:C15)) -> 32.53953648 | H5: 0.1455523938 | I5: 9694.234941 | N5: RMSE | O5: 9694.234941 | P5: F stat. | Q5: 0.5110403237
C6: beta2 | D6: 0 | H6: 0.5110403237 | I6: 3 | N6: Variable | O6: Estimate | P6: SE | Q6: RSE (HC1)
C7: SD errors | D7: 200 | H7: 48026645.2 | I7: 281934573.3 | N7: Intercept | O7: 4617.609274 | P7: 9619.330883 | Q7: 5470.034837
C8: alpha | D8: 2 | E8: THERE IS HET | N8: X1 | O8: -1127.515425 | P8: 1577.229558 | Q8: 1707.118313
B10: Intercept | C10: X1 | D10: X2 | E10: epsilon | F10: Y | H10: Pred Y = b0 + b1 X1 + b2X2 | L10: (Yi - avg Y)^2 | N10: Pred Y = b0
B11: 1 | C11: 7.786473331 | D11: 11.67306074 | E11: =NORMINV(RAND(),0,$D$7)*C11^alpha -> 7354.42262 | F11: =$D$4+$D$5*C11+$D$6*D11+E11 -> 9011.717286 | H11: =LINEST(F11:F15,C11:D15,1,1) -> -179.3100316 | I11: -414.993221 | J11: 7059.04632 | L11: =(F11-AVERAGE($F$11:$F$15))^2 -> 110937255.7 | N11: =LINEST(F11:F15,B11:B15,0,1) -> -1520.958334 | O11: 0
B12: 1 | C12: 3.202871671 | D12: 10.71066423 | E12: =NORMINV(RAND(),0,$D$7)*C12^alpha -> 228.8500267 | F12: =$D$4+$D$5*C12+$D$6*D12+E12 -> 969.4243609 | H12: 109.5970255 | I12: 1336.193712 | J12: 7847.47043 | L12: =(F12-AVERAGE($F$11:$F$15))^2 -> 6202005.969 | N12: 4061.780511
B13: 1 | C13: 5.117138777 | D13: 6.252028627 | E13: =NORMINV(RAND(),0,$D$7)*C13^alpha -> -3187.159766 | F13: -2063.732011 | H13: 0.6345995424 | I13: 7764.276535 | L13: =(F13-AVERAGE($F$11:$F$15))^2 -> 294603.264 | N13: 0.03386714529 | O13: 9082.417333
B14: 1 | C14: 1.874152458 | D14: 55.87329153 | E14: =NORMINV(RAND(),0,$D$7)*C14^alpha -> -30.79247654 | F14: 444.038015 | H14: 1.736723448 | I14: 2 | L14: =(F14-AVERAGE($F$11:$F$15))^2 -> 3861210.654 | N14: 0.1402173423 | O14: 4
B15: 1 | C15: 9.241020654 | D15: 91.73999072 | E15: =NORMINV(RAND(),0,$D$7)*C15^alpha -> -17914.44345 | F15: -15966.23932 | H15: 209393238.3 | I15: 120567980.2 | L15: =(F15-AVERAGE($F$11:$F$15))^2 -> 208666142.8 | N15: 11566571.28 | O15: 329961218.5
D17: =CORREL(C11:C15,D11:D15) -> 0.3259291163 | E17: r | L17: =SUM(L11:L15) -> 329961218.5
D18: =D17^2 -> 0.1062297889 | E18: r^2 | H18: =_xlfn.F.DIST.RT(H14,2,2) -> 0.3654004576 | I18: Whole Model F P-value
H19: =IF(H18<0.05,1,0) -> 0 | I19: Reject at 5% level
C20: Pred X1 = b0 + b1X2
C21: =LINEST(C11:C15,D11:D15,1,1) -> 0.02673329573 | D21: 4.501987858 | H21: Y on X1 and X2 Exact SEs | P21: Whole-model F stat
C22: 0.04476943919 | D22: 2.177481433 | H22: =D7/(SQRT(5)*_xlfn.STDEV.P(C11:C15)*SQRT(1-C23)) -> 34.41901395 | I22: Exact SE of b1 | P22: =(O15-I15)/2 -> 104696619.1 | Q22: F stat numerator
C23: 0.1062297889 | D23: 3.354833291 | H23: =D7/(SQRT(5)*_xlfn.STDEV.P(D11:D15)*SQRT(1-C23)) -> 2.823109789 | I23: Exact SE of b2 | P23: =I15/I14 -> 60283990.11 | Q23: F stat denominator
C24: 0.3565674517 | D24: 3 | P24: =P22/P23 -> 1.736723448 | Q24: F stat
C25: 4.013133297 | D25: 33.76471922 | P25: =_xlfn.F.DIST.RT(P24,2,2) -> 0.3654004576 | Q25: Whole Model F P Value
C27: =SQRT(1-C23) -> 0.9453942094
C28: =1/C27 -> 1.057759811

Sheet Q1
A1: Results of Monte Carlo Simulation | AK1: 0 | AL1: $H$3
A2: Sample Number | B2: $H$3 | F2: Simulation Stats | AH2: 0 | AK2: 80 | AL2: 0
A3: 1 | B3: 176.9205873 | F3: 10000 | G3: repetitions | AH3: 0.1290322542 | AI3: 0 | AK3: 80 | AL3: 2
A4: 2 | B4: 250.4534172 | F4: 8.999999589 | G4: seconds | I4: Summary Statistics | L4: Notes | AH4: 0.2580645084 | AI4: 3 | AK4: 85 | AL4: 2
A5: 3 | B5: 124.9136823 | I5: Average | J5: 199.9587861 | AH5: 0.3870967627 | AI5: 4 | AK5: 85 | AL5: 0
A6: 4 | B6: 149.5141301 | I6: SD | J6: 32.54765999 | AH6: 0.5161290169 | AI6: 8 | AK6: 90 | AL6: 0
A7: 5 | B7: 204.2827898 | I7: Max | J7: 313.7529331 | AH7: 0.6451612711 | AI7: 4 | AK7: 90 | AL7: 7
A8: 6 | B8: 160.0792767 | I8: Min | J8: 81.21772312 | AH8: 0.7741935253 | AI8: 9 | AK8: 95 | AL8: 7
A9: 7 | B9: 203.5927491 | AH9: 0.9032257795 | AI9: 9 | AK9: 95 | AL9: 4
A10: 8 | B10: 216.0708057 | AH10: 1.032258034 | AI10: 12 | AK10: 100 | AL10: 4
A11: 9 | B11: 227.2234111 | AH11: 1.161290288 | AI11: 8 | AK11: 100 | AL11: 11
A12: 10 | B12: 154.2504224 | AH12: 1.290322542 | AI12: 3 | AK12: 105 | AL12: 11
A13: 11 | B13: 169.2785049 | AH13: 1.419354796 | AI13: 6 | AK13: 105 | AL13: 14
A14: 12 | B14: 179.551866 | AH14: 1.548387051 | AI14: 7 | AK14: 110 | AL14: 14
A15: 13 | B15: 166.2130552 | AH15: 1.677419305 | AI15: 6 | AK15: 110 | AL15: 19
A16: 14 | B16: 169.356402 | AH16: 1.806451559 | AI16: 6 | AK16: 115 | AL16: 19
A17: 15 | B17: 215.0221497 | AH17: 1.935483813 | AI17: 2 | AK17: 115 | AL17: 18
A18: 16 | B18: 178.2902665 | AH18: 2.064516068 | AI18: 5 | AK18: 120 | AL18: 18
A19: 17 | B19: 223.3317108 | AH19: 2.193548322 | AI19: 2 | AK19: 120 | AL19: 46
A20: 18 | B20: 229.8238751 | AH20: 2.322580576 | AI20: 3 | AK20: 125 | AL20: 46
A21: 19 | B21: 207.9448724 | AH21: 2.45161283 | AI21: 2 | AK21: 125 | AL21: 52
A22: 20 | B22: 223.5862 | AH22: 2.580645084 | AI22: 1 | AK22: 130 | AL22: 52
A23: 21 | B23: 206.6581061 | AH23: 2.709677339 | AI23: 0 | AK23: 130 | AL23: 54
A24: 22 | B24: 210.6979565 | AH24: 2.838709593 | AI24: 0 | AK24: 135 | AL24: 54
A25: 23 | B25: 210.0778621 | AH25: 2.967741847 | AI25: 0 | AK25: 135 | AL25: 95
A26: 24 | B26: 243.3062982 | AH26: 3.096774101 | AI26: 0 | AK26: 140 | AL26: 95
A27: 25 | B27: 225.9840477 | AH27: 3.225806355 | AI27: 0 | AK27: 140 | AL27: 115
A28: 26 | B28: 192.3787101 | AH28: 3.35483861 | AI28: 0 | AK28: 145 | AL28: 115
A29: 27 | B29: 215.3111904 | AH29: 3.483870864 | AI29: 0 | AK29: 145 | AL29: 159
A30: 28 | B30: 242.837614 | AH30: 3.612903118 | AI30: 0 | AK30: 150 | AL30: 159
A31: 29 | B31: 177.552153 | AH31: 3.741935372 | AI31: 0 | AK31: 150 | AL31: 222
A32: 30 | B32: 226.3113535 | AH32: 3.870967627 | AI32: 0 | AK32: 155 | AL32: 222
A33: 31 | B33: 227.3104584 | AH33: 3.999999881 | AI33: 0 | AK33: 155 | AL33: 247
A34: 32 | B34: 185.1532741 | AK34: 160 | AL34: 247
A35: 33 | B35: 233.9945132 | AK35: 160 | AL35: 329
A36: 34 | B36: 266.1117367 | AK36: 165 | AL36: 329
A37: 35 | B37: 159.6964619 | AK37: 165 | AL37: 404
A38: 36 | B38: 171.8535502 | AK38: 170 | AL38: 404
A39: 37 | B39: 237.0003993 | AK39: 170 | AL39: 428
A40: 38 | B40: 202.8709423 | AK40: 175 | AL40: 428
A41: 39 | B41: 112.5118562 | AK41: 175 | AL41: 503
A42: 40 | B42: 219.166265 | AK42: 180 | AL42: 503
A43: 41 | B43: 163.8396914 | AK43: 180 | AL43: 556
A44: 42 | B44: 164.6763649 | AK44: 185 | AL44: 556
A45: 43 | B45: 214.1201464 | AK45: 185 | AL45: 569
A46: 44 | B46: 213.5975616 | AK46: 190 | AL46: 569
A47: 45 | B47: 162.3225468 | AK47: 190 | AL47: 555
A48: 46 | B48: 169.7891271 | AK48: 195 | AL48: 555
A49: 47 | B49: 188.0253791 | AK49: 195 | AL49: 553
A50: 48 | B50: 174.2944318 | AK50: 200 | AL50: 553
A51: 49 | B51: 152.3880081 | AK51: 200 | AL51: 631
A52: 50 | B52: 203.9313614 | AK52: 205 | AL52: 631
A53: 51 | B53: 197.5870396 | AK53: 205 | AL53: 589
A54: 52 | B54: 176.210289 | AK54: 210 | AL54: 589
A55: 53 | B55: 235.1237454 | AK55: 210 | AL55: 574
A56: 54 | B56: 241.8088758 | AK56: 215 | AL56: 574
A57: 55 | B57: 192.6307034 | AK57: 215 | AL57: 543
A58: 56 | B58: 208.8302604 | AK58: 220 | AL58: 543
A59: 57 | B59: 188.8901356 | AK59: 220 | AL59: 492
A60: 58 | B60: 201.991469 | AK60: 225 | AL60: 492
A61: 59 | B61: 169.4966412 | AK61: 225 | AL61: 419
A62: 60 | B62: 265.5551929 | AK62: 230 | AL62: 419
A63: 61 | B63: 232.833368 | AK63: 230 | AL63: 362
A64: 62 | B64: 200.9654271 | AK64: 235 | AL64: 362
A65: 63 | B65: 262.370325 | AK65: 235 | AL65: 320
A66: 64 | B66: 182.9498615 | AK66: 240 | AL66: 320
A67: 65 | B67: 167.209524 | AK67: 240 | AL67: 268
A68: 66 | B68: 155.4899291 | AK68: 245 | AL68: 268
A69: 67 | B69: 228.2030193 | AK69: 245 | AL69: 217
A70: 68 | B70: 203.3932859 | AK70: 250 | AL70: 217
A71: 69 | B71: 175.8484475 | AK71: 250 | AL71: 177
A72: 70 | B72: 227.0591782 | AK72: 255 | AL72: 177
A73: 71 | B73: 216.5411289 | AK73: 255 | AL73: 132
A74: 72 | B74: 191.95232 | AK74: 260 | AL74: 132
A75: 73 | B75: 234.9439591 | AK75: 260 | AL75: 98
A76: 74 | B76: 285.4858629 | AK76: 265 | AL76: 98
A77: 75 | B77: 221.9970931 | AK77: 265 | AL77: 61
A78: 76 | B78: 212.0022031 | AK78: 270 | AL78: 61
A79: 77 | B79: 227.2106138 | AK79: 270 | AL79: 53
A80: 78 | B80: 215.7651088 | AK80: 275 | AL80: 53
A81: 79 | B81: 253.9677207 | AK81: 275 | AL81: 36
A82: 80 | B82: 194.2161332 | AK82: 280 | AL82: 36
A83: 81 | B83: 191.933642 | AK83: 280 | AL83: 23
A84: 82 | B84: 174.4372536 | AK84: 285 | AL84: 23
A85: 83 | B85: 194.2750114 | AK85: 285 | AL85: 21
A86: 84 | B86: 186.2048657 | AK86: 290 | AL86: 21
A87: 85 | B87: 223.0624686 | AK87: 290 | AL87: 6
A88: 86 | B88: 217.9576536 | AK88: 295 | AL88: 6
A89: 87 | B89: 230.2900859 | AK89: 295 | AL89: 7
A90: 88 | B90: 217.4120515 | AK90: 300 | AL90: 7
A91: 89 | B91: 179.4011408 | AK91: 300 | AL91: 4
A92: 90 | B92: 239.2410595 | AK92: 305 | AL92: 4
A93: 91 | B93: 224.8977228 | AK93: 305 | AL93: 4
A94: 92 | B94: 198.1170344 | AK94: 310 | AL94: 4
A95: 93 | B95: 211.0687488 | AK95: 310 | AL95: 1
A96: 94 | B96: 236.7751439 | AK96: 315 | AL96: 1
A97: 95 | B97: 188.3081211 | AK97: 315 | AL97: 0
A98: 96 | B98: 198.4675516
A99: 97 | B99: 181.6823634
A100: 98 | B100: 240.7806701
A101: 99 | B101: 215.5997129
A102: 100 | B102: 173.6155815
A103: Only the first 100 repetitions are displayed on this worksheet.

Sheet Q3
A1: Results of Monte Carlo Simulation | AL1: $H$3 | AM1: Dead!$H$4
A2: Sample Number | B2: $H$3 | C2: Dead!$H$4 | F2: Simulation Stats | K2: =(L5-J6)/J6 -> -0.0783489296 | AH2: 0 | AK2: 0 | AL2: 0 | AM2: 0
A3: 1 | B3: 183.4469316 | C3: 30.19326696 | F3: 10000 | G3: repetitions | AH3: 5 | AK3: 0 | AL3: 0 | AM3: 45
A4: 2 | B4: 206.9582653 | C4: 14.35121194 | F4: 9.000000218 | G4: secs | I4: $H$3 | K4: Dead!$H$4 | M4: Notes | AH4: 10 | AK4: 5 | AL4: 0 | AM4: 45
A5: 3 | B5: 171.6064206 | C5: 27.23484713 | I5: Average | J5: 200.1084625 | K5: Average | L5: 29.96189385 | AH5: 15 | AK5: 5 | AL5: 0 | AM5: 323
A6: 4 | B6: 190.1968268 | C6: 27.95471002 | I6: SD | J6: 32.50893403 | K6: SD | L6: 12.65708392 | AH6: 20 | AK6: 10 | AL6: 0 | AM6: 323
A7: 5 | B7: 168.2320453 | C7: 17.71013439 | I7: Max | J7: 336.5578785 | K7: Max | L7: 92.89305417 | AH7: 25 | AK7: 10 | AL7: 0 | AM7: 759
A8: 6 | B8: 201.8724671 | C8: 33.07813537 | I8: Min | J8: 54.49985509 | K8: Min | L8: 1.644452909 | AH8: 30 | AK8: 15 | AL8: 0 | AM8: 759
A9: 7 | B9: 168.5068932 | C9: 27.57127718 | AH9: 35 | AK9: 15 | AL9: 0 | AM9: 1188
A10: 8 | B10: 230.8759224 | C10: 45.71347259 | AH10: 40 | AK10: 20 | AL10: 0 | AM10: 1188
A11: 9 | B11: 172.2871161 | C11: 24.69478194 | AH11: 45 | AK11: 20 | AL11: 0 | AM11: 1457
A12: 10 | B12: 201.5700023 | C12: 18.14868917 | AH12: 50 | AK12: 25 | AL12: 0 | AM12: 1457
A13: 11 | B13: 169.2293461 | C13: 32.33967009 | AH13: 55 | AK13: 25 | AL13: 0 | AM13: 1580
A14: 12 | B14: 219.4843151 | C14: 21.53178561 | AH14: 60 | AK14: 30 | AL14: 0 | AM14: 1580
A15: 13 | B15: 211.990442 | C15: 38.00858473 | AH15: 65 | AK15: 30 | AL15: 0 | AM15: 1412
A16: 14 | B16: 162.6890314 | C16: 48.75164468 | AH16: 70 | AK16: 35 | AL16: 0 | AM16: 1412
A17: 15 | B17: 183.6113709 | C17: 25.25952437 | AH17: 75 | AK17: 35 | AL17: 0 | AM17: 1179
A18: 16 | B18: 184.557476 | C18: 36.69207409 | AH18: 80 | AK18: 40 | AL18: 0 | AM18: 1179
A19: 17 | B19: 195.647798 | C19: 39.45128587 | F19: 1 | AH19: 85 | AK19: 40 | AL19: 0 | AM19: 818
A20: 18 | B20: 184.5546647 | C20: 55.44223953 | AH20: 90 | AK20: 45 | AL20: 0 | AM20: 818
A21: 19 | B21: 167.5831585 | C21: 24.50370558 | AH21: 95 | AK21: 45 | AL21: 0 | AM21: 554
A22: 20 | B22: 185.144348 | C22: 47.26556537 | AH22: 100 | AK22: 50 | AL22: 0 | AM22: 554
A23: 21 | B23: 213.3070952 | C23: 38.06536492 | AH23: 105 | AK23: 50 | AL23: 1 | AM23: 345
A24: 22 | B24: 195.8176899 | C24: 2.989406769 | AH24: 110 | AK24: 55 | AL24: 1 | AM24: 345
A25: 23 | B25: 182.5608461 | C25: 22.34938902 | AH25: 115 | AK25: 55 | AL25: 0 | AM25: 171
A26: 24 | B26: 162.0841078 | C26: 25.2846659 | AH26: 120 | AK26: 60 | AL26: 0 | AM26: 171
A27: 25 | B27: 198.1788551 | C27: 16.03107982 | AH27: 125 | AK27: 60 | AL27: 0 | AM27: 83
A28: 26 | B28: 205.8211607 | C28: 33.20221826 | AH28: 130 | AK28: 65 | AL28: 0 | AM28: 83
A29: 27 | B29: 184.216719 | C29: 16.48789487 | AH29: 135 | AK29: 65 | AL29: 0 | AM29: 54
A30: 28 | B30: 193.760826 | C30: 28.72606806 | AH30: 140 | AK30: 70 | AL30: 0 | AM30: 54
A31: 29 | B31: 194.4098355 | C31: 35.39303228 | AH31: 145 | AK31: 70 | AL31: 0 | AM31: 10
A32: 30 | B32: 157.9028164 | C32: 47.63344985 | AH32: 150 | AK32: 75 | AL32: 0 | AM32: 10
A33: 31 | B33: 202.4336463 | C33: 40.72910458 | AH33: 155 | AK33: 75 | AL33: 1 | AM33: 11
A34: 32 | B34: 226.4815389 | C34: 21.07009154 | AH34: 160 | AK34: 80 | AL34: 1 | AM34: 11
A35: 33 | B35: 203.5737623 | C35: 23.15270724 | AH35: 165 | AK35: 80 | AL35: 2 | AM35: 5
A36: 34 | B36: 162.4058005 | C36: 40.43039696 | AH36: 170 | AK36: 85 | AL36: 2 | AM36: 5
A37: 35 | B37: 217.6877076 | C37: 47.86884265 | AH37: 175 | AK37: 85 | AL37: 0 | AM37: 5
A38: 36 | B38: 150.8652998 | C38: 22.54107333 | AH38: 180 | AK38: 90 | AL38: 0 | AM38: 5
A39: 37 | B39: 213.3269767 | C39: 14.9876201 | AH39: 185 | AK39: 90 | AL39: 4 | AM39: 1
A40: 38 | B40: 168.1763034 | C40: 14.56649481 | AH40: 190 | AK40: 95 | AL40: 4 | AM40: 1
A41: 39 | B41: 209.3257667 | C41: 26.90931497 | AH41: 195 | AK41: 95 | AL41: 2 | AM41: 0
A42: 40 | B42: 248.675144 | C42: 23.0440434 | AH42: 200 | AK42: 100 | AL42: 2
A43: 41 | B43: 168.4243168 | C43: 31.3723762 | AH43: 205 | AK43: 100 | AL43: 11
A44: 42 | B44: 192.1861525 | C44: 67.58884688 | AH44: 210 | AK44: 105 | AL44: 11
A45: 43 | B45: 232.6126738 | C45: 15.311886 | AH45: 215 | AK45: 105 | AL45: 9
A46: 44 | B46: 275.702207 | C46: 19.2722765 | AH46: 220 | AK46: 110 | AL46: 9
A47: 45 | B47: 196.4846326 | C47: 34.07425577 | AH47: 225 | AK47: 110 | AL47: 12
A48: 46 | B48: 195.7152711 | C48: 42.52195371 | AH48: 230 | AK48: 115 | AL48: 12
A49: 47 | B49: 237.6294746 | C49: 21.506649 | AH49: 235 | AK49: 115 | AL49: 26
A50: 48 | B50: 179.8585198 | C50: 36.7053598 | AH50: 240 | AK50: 120 | AL50: 26
A51: 49 | B51: 201.7426784 | C51: 47.05345974 | AH51: 245 | AK51: 120 | AL51: 34
A52: 50 | B52: 256.978209 | C52: 42.16237758 | AH52: 250 | AK52: 125 | AL52: 34
A53: 51 | B53: 144.0895578 | C53: 16.70931417 | AH53: 255 | AK53: 125 | AL53: 46
A54: 52 | B54: 196.8695529 | C54: 17.66070427 | AH54: 260 | AK54: 130 | AL54: 46
A55: 53 | B55: 216.4269928 | C55: 27.8920129 | AH55: 265 | AK55: 130 | AL55: 78
A56: 54 | B56: 239.0822375 | C56: 32.01214284 | AH56: 270 | AK56: 135 | AL56: 78
A57: 55 | B57: 199.8374489 | C57: 29.81842438 | AH57: 275 | AK57: 135 | AL57: 96
A58: 56 | B58: 248.8801814 | C58: 59.42046856 | AH58: 280 | AK58: 140 | AL58: 96
A59: 57 | B59: 248.0248566 | C59: 35.28205717 | AH59: 285 | AK59: 140 | AL59: 118
A60: 58 | B60: 294.178124 | C60: 45.55246469 | AH60: 290 | AK60: 145 | AL60: 118
A61: 59 | B61: 230.2401454 | C61: 23.02817012 | AH61: 295 | AK61: 145 | AL61: 176
A62: 60 | B62: 214.2913064 | C62: 20.15747092 | AH62: 300 | AK62: 150 | AL62: 176
A63: 61 | B63: 225.1527558 | C63: 18.256466 | AH63: 305 | AK63: 150 | AL63: 260
A64: 62 | B64: 130.794588 | C64: 26.58482602 | AH64: 310 | AK64: 155 | AL64: 260
A65: 63 | B65: 179.7342546 | C65: 54.33426294 | AH65: 315 | AK65: 155 | AL65: 240
A66: 64 | B66: 225.6896304 | C66: 20.85857138 | AH66: 320 | AK66: 160 | AL66: 240
A67: 65 | B67: 238.969748 | C67: 49.83266174 | AH67: 325 | AK67: 160 | AL67: 311
A68: 66 | B68: 159.3873586 | C68: 30.54598917 | AH68: 330 | AK68: 165 | AL68: 311
A69: 67 | B69: 204.884567 | C69: 27.32921559 | AH69: 335 | AK69: 165 | AL69: 361
A70: 68 | B70: 213.0697929 | C70: 61.93669364 | AH70: 340 | AK70: 170 | AL70: 361
A71: 69 | B71: 191.6812002 | C71: 31.35093242 | AK71: 170 | AL71: 443
A72: 70 | B72: 178.3670279 | C72: 30.39191389 | AK72: 175 | AL72: 443
A73: 71 | B73: 200.4852851 | C73: 39.66681363 | AK73: 175 | AL73: 428
A74: 72 | B74: 173.5755391 | C74: 35.62939881 | AK74: 180 | AL74: 428
A75: 73 | B75: 154.1279999 | C75: 25.29759038 | AK75: 180 | AL75: 522
A76: 74 | B76: 151.2816249 | C76: 45.76065924 | AK76: 185 | AL76: 522
A77: 75 | B77: 192.1159951 | C77: 3.097024541 | AK77: 185 | AL77: 572
A78: 76 | B78: 228.6375583 | C78: 25.79040467 | AK78: 190 | AL78: 572
A79: 77 | B79: 248.3067142 | C79: 20.35802426 | AK79: 190 | AL79: 584
A80: 78 | B80: 202.0708157 | C80: 35.39009387 | AK80: 195 | AL80: 584
A81: 79 | B81: 203.4005061 | C81: 25.66287807 | AK81: 195 | AL81: 641
A82: 80 | B82: 207.5120449 | C82: 29.46030531 | AK82: 200 | AL82: 641
A83: 81 | B83: 205.1977427 | C83: 41.83615038 | AK83: 200 | AL83: 579
A84: 82 | B84: 217.7850309 | C84: 43.2266435 | AK84: 205 | AL84: 579
A85: 83 | B85: 184.5298693 | C85: 24.53173696 | AK85: 205 | AL85: 585
A86: 84 | B86: 130.3196694 | C86: 19.69049696 | AK86: 210 | AL86: 585
A87: 85 | B87: 202.0878858 | C87: 27.1881896 | AK87: 210 | AL87: 575
A88: 86 | B88: 211.8556472 | C88: 37.76834594 | AK88: 215 | AL88: 575
A89: 87 | B89: 167.0324496 | C89: 1.76675288 | AK89: 215 | AL89: 549
A90: 88 | B90: 143.1478337 | C90: 42.04093781 | AK90: 220 | AL90: 549
A91: 89 | B91: 221.557666 | C91: 6.261714258 | AK91: 220 | AL91: 524
A92: 90 | B92: 211.4694379 | C92: 33.83362954 | AK92: 225 | AL92: 524
A93: 91 | B93: 246.8799567 | C93: 34.35902294 | AK93: 225 | AL93: 439
A94: 92 | B94: 162.1984111 | C94: 38.26164434 | AK94: 230 | AL94: 439
A95: 93 | B95: 171.9093661 | C95: 45.44080071 | AK95: 230 | AL95: 381
A96: 94 | B96: 170.5208195 | C96: 27.08275678 | AK96: 235 | AL96: 381
A97: 95 | B97: 167.8281454 | C97: 11.11289611 | AK97: 235 | AL97: 326
A98: 96 | B98: 187.6872786 | C98: 47.39942879 | AK98: 240 | AL98: 326
A99: 97 | B99: 251.6492424 | C99: 13.93303166 | AK99: 240 | AL99: 255
A100: 98 | B100: 202.2195516 | C100: 28.70154295 | AK100: 245 | AL100: 255
A101: 99 | B101: 257.7068963 | C101: 14.67701737 | AK101: 245 | AL101: 197
A102: 100 | B102: 215.1614114 | C102: 21.71580727 | AK102: 250 | AL102: 197
A103: Only the first 100 repetitions are displayed on this worksheet. | AK103: 250 | AL103: 165
AK104: 255 | AL104: 165
AK105: 255 | AL105: 118
AK106: 260 | AL106: 118
AK107: 260 | AL107: 95
AK108: 265 | AL108: 95
AK109: 265 | AL109: 81
AK110: 270 | AL110: 81
AK111: 270 | AL111: 46
AK112: 275 | AL112: 46
AK113: 275 | AL113: 39
AK114: 280 | AL114: 39
AK115: 280 | AL115: 27
AK116: 285 | AL116: 27
AK117: 285 | AL117: 14
AK118: 290 | AL118: 14
AK119: 290 | AL119: 11
AK120: 295 | AL120: 11
AK121: 295 | AL121: 6
AK122: 300 | AL122: 6
AK123: 300 | AL123: 4
AK124: 305 | AL124: 4
AK125: 305 | AL125: 3
AK126: 310 | AL126: 3
AK127: 310 | AL127: 0
AK128: 315 | AL128: 0
AK129: 315 | AL129: 1
AK130: 320 | AL130: 1
AK131: 320 | AL131: 1
AK132: 325 | AL132: 1
AK133: 325 | AL133: 0
AK134: 330 | AL134: 0
AK135: 330 | AL135: 0
AK136: 335 | AL136: 0
AK137: 335 | AL137: 1
AK138: 340 | AL138: 1
AK139: 340 | AL139: 0

Sheet Q6
A1: Results of Monte Carlo Simulation | AL1: $H$3 | AM1: Dead!$K$3
A2: Sample Number | B2: $H$3 | C2: Dead!$K$3 | F2: Simulation Stats | AH2: -80 | AK2: -80 | AL2: 0 | AM2: 0
A3: 1 | B3: 186.9768479 | C3: 230.0438851 | F3: 10000 | G3: repetitions | AH3: -70 | AK3: -80 | AL3: 0 | AM3: 2
A4: 2 | B4: 198.7443284 | C4: 196.8129731 | F4: 8.999999589 | G4: secs | I4: $H$3 | K4: Dead!$K$3 | M4: Notes | AH4: -60 | AK4: -70 | AL4: 0 | AM4: 2
A5: 3 | B5: 177.9991951 | C5: 274.3987674 | I5: Average | J5: 199.4205578 | K5: Average | L5: 198.7887966 | AH5: -50 | AK5: -70 | AL5: 0 | AM5: 1
A6: 4 | B6: 220.0771716 | C6: 166.4998991 | I6: SD | J6: 32.5022723 | K6: SD | L6: 63.21976923 | AH6: -40 | AK6: -60 | AL6: 0 | AM6: 1
A7: 5 | B7: 216.7077191 | C7: 230.8465675 | I7: Max | J7: 329.2489767 | K7: Max | L7: 538.2710419 | AH7: -30 | AK7: -60 | AL7: 0 | AM7: 0
A8: 6 | B8: 224.1848185 | C8: 210.9541528 | I8: Min | J8: 77.36983567 | K8: Min | L8: -77.3882705 | AH8: -20 | AK8: -50 | AL8: 0 | AM8: 0
A9: 7 | B9: 213.0849191 | C9: 262.1033936 | AH9: -10 | AK9: -50 | AL9: 0 | AM9: 2
A10: 8 | B10: 235.5618965 | C10: 226.8279641 | AH10: 0 | AK10: -40 | AL10: 0 | AM10: 2
A11: 9 | B11: 170.9156945 | C11: 1.905022939 | AH11: 10 | AK11: -40 | AL11: 0 | AM11: 5
A12: 10 | B12: 178.2121212 | C12: 176.5661937 | AH12: 20 | AK12: -30 | AL12: 0 | AM12: 5
A13: 11 | B13: 166.5848594 | C13: 135.0436189 | AH13: 30 | AK13: -30 | AL13: 0 | AM13: 9
A14: 12 | B14: 260.7988413 | C14: 228.3329632 | AH14: 40 | AK14: -20 | AL14: 0 | AM14: 9
A15: 13 | B15: 200.6497602 | C15: 210.3661004 | AH15: 50 | AK15: -20 | AL15: 0 | AM15: 7
A16: 14 | B16: 225.4039882 | C16: 201.5014987 | AH16: 60 | AK16: -10 | AL16: 0 | AM16: 7
A17: 15 | B17: 209.1251624 | C17: 190.2129923 | AH17: 70 | AK17: -10 | AL17: 0 | AM17: 5
A18: 16 | B18: 186.759649 | C18: 143.3270607 | AH18: 80 | AK18: 0 | AL18: 0 | AM18: 5
A19: 17 | B19: 183.7511743 | C19: 180.9881969 | F19: 1 | AH19: 90 | AK19: 0 | AL19: 0 | AM19: 16
A20: 18 | B20: 197.6180188 | C20: 201.9475803 | AH20: 100 | AK20: 10 | AL20: 0 | AM20: 16
A21: 19 | B21: 190.3472092 | C21: 155.1011783 | AH21: 110 | AK21: 10 | AL21: 0 | AM21: 19
A22: 20 | B22: 213.8998135 | C22: 178.2984511 | AH22: 120 | AK22: 20 | AL22: 0 | AM22: 19
A23: 21 | B23: 228.0346692 | C23: 166.6840434 | AH23: 130 | AK23: 20 | AL23: 0 | AM23: 20
A24: 22 | B24: 194.4775566 | C24: 305.7978301 | AH24: 140 | AK24: 30 | AL24: 0 | AM24: 20
A25: 23 | B25: 192.2483414 | C25: 160.6275299 | AH25: 150 | AK25: 30 | AL25: 0 | AM25: 35
A26: 24 | B26: 219.9186594 | C26: 148.0915719 | AH26: 160 | AK26: 40 | AL26: 0 | AM26: 35
A27: 25 | B27: 221.8892856 | C27: 123.388991 | AH27: 170 | AK27: 40 | AL27: 0 | AM27: 38
A28: 26 | B28: 188.9343774 | C28: 145.8873892 | AH28: 180 | AK28: 50 | AL28: 0 | AM28: 38
A29: 27 | B29: 151.9706515 | C29: 136.9701129 | AH29: 190 | AK29: 50 | AL29: 0 | AM29: 54
A30: 28 | B30: 205.7107057 | C30: 168.4970905 | AH30: 200 | AK30: 60 | AL30: 0 | AM30: 54
A31: 29 | B31: 140.8629622 | C31: 71.5574534 | AH31: 210 | AK31: 60 | AL31: 0 | AM31: 64
A32: 30 | B32: 187.0164366 | C32: 139.4820382 | AH32: 220 | AK32: 70 | AL32: 0 | AM32: 64
A33: 31 | B33: 232.9179255 | C33: 205.6688497 | AH33: 230 | AK33: 70 | AL33: 1 | AM33: 64
A34: 32 | B34: 221.7934278 | C34: 211.5226229 | AH34: 240 | AK34: 80 | AL34: 1 | AM34: 64
A35: 33 | B35: 174.1049141 | C35: 174.2676211 | AH35: 250 | AK35: 80 | AL35: 5 | AM35: 91
A36: 34 | B36: 208.474264 | C36: 196.1193827 | AH36: 260 | AK36: 90 | AL36: 5 | AM36: 91
A37: 35 | B37: 195.5292345 | C37: 132.6575275 | AH37: 270 | AK37: 90 | AL37: 5 | AM37: 142
A38: 36 | B38: 198.9234708 | C38: 192.4154421 | AH38: 280 | AK38: 100 | AL38: 5 | AM38: 142
A39: 37 | B39: 221.9759253 | C39: 255.5556356 | AH39: 290 | AK39: 100 | AL39: 24 | AM39: 140
A40: 38 | B40: 188.9830221 | C40: 191.8685408 | AH40: 300 | AK40: 110 | AL40: 24 | AM40: 140
A41: 39 | B41: 183.2015834 | C41: 154.691153 | AH41: 310 | AK41: 110 | AL41: 44 | AM41: 221
A42: 40 | B42: 197.7604626 | C42: 144.4468191 | AH42: 320 | AK42: 120 | AL42: 44 | AM42: 221
A43: 41 | B43: 241.1054715 | C43: 440.8385113 | AH43: 330 | AK43: 120 | AL43: 89 | AM43: 273
A44: 42 | B44: 201.6297818 | C44: 174.3660757 | AK44: 130 | AL44: 89 | AM44: 273
A45: 43 | B45: 245.0200982 | C45: 233.4387055 | AK45: 130 | AL45: 172 | AM45: 322
A46: 44 | B46: 221.8857015 | C46: 143.9446704 | AK46: 140 | AL46: 172 | AM46: 322
A47: 45 | B47: 178.1817679 | C47: 110.1819349 | AK47: 140 | AL47: 285 | AM47: 423
A48: 46 | B48: 154.3920186 | C48: 102.3778306 | AK48: 150 | AL48: 285 | AM48: 423
A49: 47 | B49: 172.536849 | C49: 295.505919 | AK49: 150 | AL49: 506 | AM49: 477
A50: 48 | B50: 222.473858 | C50: 258.6215077 | AK50: 160 | AL50: 506 | AM50: 477
A51: 49 | B51: 156.837091 | C51: 186.705287 | AK51: 160 | AL51: 695 | AM51: 576
A52: 50 | B52: 240.9547812 | C52: 229.5957674 | AK52: 170 | AL52: 695 | AM52: 576
A53: 51 | B53: 218.4493948 | C53: 233.6810362 | AK53: 170 | AL53: 914 | AM53: 661
A54: 52 | B54: 219.9030642 | C54: 243.2441547 | AK54: 180 | AL54: 914 | AM54: 661
A55: 53 | B55: 183.6797782 | C55: 174.468814 | AK55: 180 | AL55: 1125 | AM55: 700
A56: 54 | B56: 175.2782905 | C56: 127.49954 | AK56: 190 | AL56: 1125 | AM56: 700
A57: 55 | B57: 246.2448123 | C57: 274.1190071 | AK57: 190 | AL57: 1213 | AM57: 759
A58: 56 | B58: 177.3111748 | C58: 194.3543708 | AK58: 200 | AL58: 1213 | AM58: 759
A59: 57 | B59: 198.7937321 | C59: 140.3113526 | AK59: 200 | AL59: 1168 | AM59: 661
A60: 58 | B60: 197.8619417 | C60: 167.4332445 | AK60: 210 | AL60: 1168 | AM60: 661
A61: 59 | B61: 195.0094554 | C61: 148.0850492 | AK61: 210 | AL61: 1154 | AM61: 660
A62: 60 | B62: 237.6689713 | C62: 196.5778373 | AK62: 220 | AL62: 1154 | AM62: 660
A63: 61 | B63: 175.11239 | C63: 72.40771945 | AK63: 220 | AL63: 871 | AM63: 609
A64: 62 | B64: 216.8397689 | C64: 183.0661339 | AK64: 230 | AL64: 871 | AM64: 609
A65: 63 | B65: 221.3669248 | C65: 207.0175931 | AK65: 230 | AL65: 676 | AM65: 590
A66: 64 | B66: 213.6909557 | C66: 126.6208129 | AK66: 240 | AL66: 676 | AM66: 590
A67: 65 | B67: 228.868701 | C67: 114.2257168 | AK67: 240 | AL67: 461 | AM67: 494
A68: 66 | B68: 190.3603786 | C68: 200.4528838 | AK68: 250 | AL68: 461 | AM68: 494
A69: 67 | B69: 131.2081286 | C69: 177.839753 | AK69: 250 | AL69: 278 | AM69: 410
A70: 68 | B70: 191.4454984 | C70: 192.3422345 | AK70: 260 | AL70: 278 | AM70: 410
A71: 69 | B71: 159.4687942 | C71: 125.5048204 | AK71: 260 | AL71: 165 | AM71: 320
A72: 70 | B72: 209.7390183 | C72: 278.8173527 | AK72: 270 | AL72: 165 | AM72: 320
A73: 71 | B73: 180.1085018 | C73: 11.82579457 | AK73: 270 | AL73: 84 | AM73: 282
A74: 72 | B74: 216.4689998 | C74: 288.069801 | AK74: 280 | AL74: 84 | AM74: 282
A75: 73 | B75: 173.111656 | C75: 176.2654798 | AK75: 280 | AL75: 42 | AM75: 190
A76: 74 | B76: 236.6020297 | C76: 150.552412 | AK76: 290 | AL76: 42 | AM76: 190
A77: 75 | B77: 228.5129484 | C77: 152.5645377 | AK77: 290 | AL77: 15 | AM77: 151
A78: 76 | B78: 167.7750502 | C78: 150.6438439 | AK78: 300 | AL78: 15 | AM78: 151
A79: 77 | B79: 214.1179397 | C79: 249.9863498 | AK79: 300 | AL79: 6 | AM79: 118
A80: 78 | B80: 189.1563654 | C80: 43.12763114 | AK80: 310 | AL80: 6 | AM80: 118
A81: 79 | B81: 190.3253481 | C81: 245.1875121 | AK81: 310 | AL81: 0 | AM81: 88
A82: 80 | B82: 200.2809714 | C82: 220.0808427 | AK82: 320 | AL82: 0 | AM82: 88
A83: 81 | B83: 224.1166933 | C83: 291.3017279 | AK83: 320 | AL83: 2 | AM83: 57
A84: 82 | B84: 202.336704 | C84: 330.5495372 | AK84: 330 | AL84: 2 | AM84: 57
A85: 83 | B85: 119.8703628 | C85: 139.8127283 | AK85: 330 | AL85: 0 | AM85: 62
A86: 84 | B86: 186.3449466 | C86: 177.1663371 | AK86: 340 | AM86: 62
A87: 85 | B87: 218.5240394 | C87: 212.5957758 | AK87: 340 | AM87: 51
A88: 86 | B88: 138.7617555 | C88: -77.3882705 | AK88: 350 | AM88: 51
A89: 87 | B89: 162.2601166 | C89: 118.484547 | AK89: 350 | AM89: 30
A90: 88 | B90: 264.8837011 | C90: 214.6781768 | AK90: 360 | AM90: 30
A91: 89 | B91: 137.3184819 | C91: 109.9005675 | AK91: 360 | AM91: 21
A92: 90 | B92: 200.0039685 | C92: 11.41949874 | AK92: 370 | AM92: 21
A93: 91 | B93: 152.5710569 | C93: -1.136919336 | AK93: 370 | AM93: 25
A94: 92 | B94: 221.707761 | C94: 55.91479759 | AK94: 380 | AM94: 25
A95: 93 | B95: 206.9956298 | C95: 204.0617038 | AK95: 380 | AM95: 13
A96: 94 | B96: 172.2440049 | C96: 250.4970403 | AK96: 390 | AM96: 13
A97: 95 | B97: 214.3298751 | C97: 260.7412826 | AK97: 390 | AM97: 14
A98: 96 | B98: 247.421331 | C98: 256.6069101 | AK98: 400 | AM98: 14
A99: 97 | B99: 223.5067529 | C99: 265.5050245 | AK99: 400 | AM99: 8
A100: 98 | B100: 193.66787 | C100: 293.7684812 | AK100: 410 | AM100: 8
A101: 99 | B101: 258.4673045 | C101: 293.0011112 | AK101: 410 | AM101: 5
A102: 100 | B102: 238.5849766 | C102: 296.8954492 | AK102: 420 | AM102: 5
A103: Only the first 100 repetitions are displayed on this worksheet. | AK103: 420 | AM103: 3
AK104: 430 | AM104: 3
AK105: 430 | AM105: 0
AK106: 440 | AM106: 0
AK107: 440 | AM107: 4
AK108: 450 | AM108: 4
AK109: 450 | AM109: 1
AK110: 460 | AM110: 1
AK111: 460 | AM111: 3
AK112: 470 | AM112: 3
AK113: 470 | AM113: 1
AK114: 480 | AM114: 1
AK115: 480 | AM115: 1
AK116: 490 | AM116: 1
AK117: 490 | AM117: 1
AK118: 500 | AM118: 1
AK119: 500 | AM119: 0
AK120: 510 | AM120: 0
AK121: 510 | AM121: 0
AK122: 520 | AM122: 0
AK123: 520 | AM123: 0
AK124: 530 | AM124: 0
AK125: 530 | AM125: 1
AK126: 540 | AM126: 1
AK127: 540 | AM127: 0

Sheet Q8
A1: Results of Monte Carlo Simulation | AK1: 0 | AL1: $H$19
A2: Sample Number | B2: $H$19 | F2: Simulation Stats | AH2: 0 | AK2: 0 | AL2: 0
A3: 1 | B3: 1 | F3: 10000 | G3: repetitions | AH3: 0.1290322542 | AI3: 0 | AK3: 0 | AL3: 3705
A4: 2 | B4: 1 | F4: 9.999999823 | G4: seconds | I4: Summary Statistics | L4: Notes | AH4: 0.2580645084 | AI4: 3 | AK4: 0.025 | AL4: 3705
A5: 3 | B5: 1 | I5: Average | J5: 0.6295 | AH5: 0.3870967627 | AI5: 4 | AK5: 0.025 | AL5: 0
A6: 4 | B6: 0 | I6: SD | J6: 0.4829628094 | AH6: 0.5161290169 | AI6: 8 | AK6: 0.05 | AL6: 0
A7: 5 | B7: 1 | I7: Max | J7: 1 | AH7: 0.6451612711 | AI7: 4 | AK7: 0.05 | AL7: 0
A8: 6 | B8: 1 | I8: Min | J8: 0 | AH8: 0.7741935253 | AI8: 9 | AK8: 0.075 | AL8: 0
A9: 7 | B9: 1 | AH9: 0.9032257795 | AI9: 9 | AK9: 0.075 | AL9: 0
A10: 8 | B10: 1 | AH10: 1.032258034 | AI10: 12 | AK10: 0.1 | AL10: 0
A11: 9 | B11: 1 | AH11: 1.161290288 | AI11: 8 | AK11: 0.1 | AL11: 0
A12: 10 | B12: 0 | AH12: 1.290322542 | AI12: 3 | AK12: 0.125 | AL12: 0
A13: 11 | B13: 1 | AH13: 1.419354796 | AI13: 6 | AK13: 0.125 | AL13: 0
A14: 12 | B14: 1 | AH14: 1.548387051 | AI14: 7 | AK14: 0.15 | AL14: 0
A15: 13 | B15: 1 | AH15: 1.677419305 | AI15: 6 | AK15: 0.15 | AL15: 0
A16: 14 | B16: 1 | AH16: 1.806451559 | AI16: 6 | AK16: 0.175 | AL16: 0
A17: 15 | B17: 1 | AH17: 1.935483813 | AI17: 2 | AK17: 0.175 | AL17: 0
A18: 16 | B18: 1 | AH18: 2.064516068 | AI18: 5 | AK18: 0.2 | AL18: 0
A19: 17 | B19: 1 | AH19: 2.193548322 | AI19: 2 | AK19: 0.2 | AL19: 0
A20: 18 | B20: 0 | AH20: 2.322580576 | AI20: 3 | AK20: 0.225 | AL20: 0
A21: 19 | B21: 0 | AH21: 2.45161283 | AI21: 2 | AK21: 0.225 | AL21: 0
A22: 20 | B22: 1 | AH22: 2.580645084 | AI22: 1 | AK22: 0.25 | AL22: 0
A23: 21 | B23: 1 | AH23: 2.709677339 | AI23: 0 | AK23: 0.25 | AL23: 0
A24: 22 | B24: 0 | AH24: 2.838709593 | AI24: 0 | AK24: 0.275 | AL24: 0
A25: 23 | B25: 1 | AH25: 2.967741847 | AI25: 0 | AK25: 0.275 | AL25: 0
A26: 24 | B26: 1 | AH26: 3.096774101 | AI26: 0 | AK26: 0.3 | AL26: 0
A27: 25 | B27: 1 | AH27: 3.225806355 | AI27: 0 | AK27: 0.3 | AL27: 0
A28: 26 | B28: 0 | AH28: 3.35483861 | AI28: 0 | AK28: 0.325 | AL28: 0
A29: 27 | B29: 1 | AH29: 3.483870864 | AI29: 0 | AK29: 0.325 | AL29: 0
A30: 28 | B30: 1 | AH30: 3.612903118 | AI30: 0 | AK30: 0.35 | AL30: 0
A31: 29 | B31: 0 | AH31: 3.741935372 | AI31: 0 | AK31: 0.35 | AL31: 0
A32: 30 | B32: 0 | AH32: 3.870967627 | AI32: 0 | AK32: 0.375 | AL32: 0
A33: 31 | B33: 1 | AH33: 3.999999881 | AI33: 0 | AK33: 0.375 | AL33: 0
A34: 32 | B34: 1 | AK34: 0.4 | AL34: 0
A35: 33 | B35: 1 | AK35: 0.4 | AL35: 0
A36: 34 | B36: 0 | AK36: 0.425 | AL36: 0
A37: 35 | B37: 1 | AK37: 0.425 | AL37: 0
A38: 36 | B38: 0 | AK38: 0.45 | AL38: 0
A39: 37 | B39: 1 | AK39: 0.45 | AL39: 0
A40: 38 | B40: 0 | AK40: 0.475 | AL40: 0
A41: 39 | B41: 0 | AK41: 0.475 | AL41: 0
A42: 40 | B42: 1 | AK42: 0.5 | AL42: 0
A43: 41 | B43: 1 | AK43: 0.5 | AL43: 0
A44: 42 | B44: 1 | AK44: 0.525 | AL44: 0
A45: 43 | B45: 1 | AK45: 0.525 | AL45: 0
A46: 44 | B46: 1 | AK46: 0.55 | AL46: 0
A47: 45 | B47: 1 | AK47: 0.55 | AL47: 0
A48: 46 | B48: 0 | AK48: 0.575 | AL48: 0
A49: 47 | B49: 0 | AK49: 0.575 | AL49: 0
A50: 48 | B50: 0 | AK50: 0.6 | AL50: 0
A51: 49 | B51: 1 | AK51: 0.6 | AL51: 0
A52: 50 | B52: 1 | AK52: 0.625 | AL52: 0
A53: 51 | B53: 1 | AK53: 0.625 | AL53: 0
A54: 52 | B54: 0 | AK54: 0.65 | AL54: 0
A55: 53 | B55: 1 | AK55: 0.65 | AL55: 0
A56: 54 | B56: 1 | AK56: 0.675 | AL56: 0
A57: 55 | B57: 1 | AK57: 0.675 | AL57: 0
A58: 56 | B58: 1 | AK58: 0.7 | AL58: 0
A59: 57 | B59: 1 | AK59: 0.7 | AL59: 0
A60: 58 | B60: 0 | AK60: 0.725 | AL60: 0
A61: 59 | B61: 1 | AK61: 0.725 | AL61: 0
A62: 60 | B62: 0 | AK62: 0.75 | AL62: 0
A63: 61 | B63: 1 | AK63: 0.75 | AL63: 0
A64: 62 | B64: 1 | AK64: 0.775 | AL64: 0
A65: 63 | B65: 0 | AK65: 0.775 | AL65: 0
A66: 64 | B66: 0 | AK66: 0.8 | AL66: 0
A67: 65 | B67: 1 | AK67: 0.8 | AL67: 0
A68: 66 | B68: 0 | AK68: 0.825 | AL68: 0
A69: 67 | B69: 1 | AK69: 0.825 | AL69: 0
A70: 68 | B70: 1 | AK70: 0.85 | AL70: 0
A71: 69 | B71: 1 | AK71: 0.85 | AL71: 0
A72: 70 | B72: 0 | AK72: 0.875 | AL72: 0
A73: 71 | B73: 1 | AK73: 0.875 | AL73: 0
A74: 72 | B74: 1 | AK74: 0.9 | AL74: 0
A75: 73 | B75: 0 | AK75: 0.9 | AL75: 0
A76: 74 | B76: 0 | AK76: 0.925 | AL76: 0
A77: 75 | B77: 0 | AK77: 0.925 | AL77: 0
A78: 76 | B78: 0 | AK78: 0.95 | AL78: 0
A79: 77 | B79: 1 | AK79: 0.95 | AL79: 0
A80: 78 | B80: 1 | AK80: 0.975 | AL80: 0
A81: 79 | B81: 0 | AK81: 0.975 | AL81: 0
A82: 80 | B82: 0 | AK82: 1 | AL82: 0
A83: 81 | B83: 1 | AK83: 1 | AL83: 6295
A84: 82 | B84: 0 | AK84: 1.025 | AL84: 6295
A85: 83 | B85: 0 | AK85: 1.025 | AL85: 0
A86: 84 | B86: 1
A87: 85 | B87: 1
A88: 86 | B88: 0
A89: 87 | B89: 1
A90: 88 | B90: 0
A91: 89 | B91: 1
A92: 90 | B92: 1
A93: 91 | B93: 1
A94: 92 | B94: 0
A95: 93 | B95: 1
A96: 94 | B96: 0
A97: 95 | B97: 0
A98: 96 | B98: 0
A99: 97 | B99: 0
A100: 98 | B100: 0
A101: 99 | B101: 0
A102: 100 | B102: 0
A103: Only the first 100 repetitions are displayed on this worksheet.
